{"text_format":"1","workbook":"xlsx","n_sheets":5,"sheets":["TENDER PACK 4 IFU (Sheet A)","TENDER PACK 4 IFU (Sheet B)","DC3A","DC3B","DC3C"],"not_rendered":{"charts":0,"images":4,"macros":1,"external_links":0,"defined_names":2,"comments":7,"pivot_tables":0},"unopened":[],"bounds":{"document_bytes":16777216,"sheet_cells":100000,"rows_first":2000,"rows_last":500,"rows_between":2000,"halvings":0,"cell_chars":16384,"cell_head_chars":4096},"cells_cut":0,"cells_raw":0,"read":"whole","date_system":"1900"}

{"sheet":"TENDER PACK 4 IFU (Sheet A)","index":0,"n_rows":238,"n_cols":21,"rows_kept":238,"cut":false,"hidden":false,"merged":[[101,7,101,14],[147,2,149,2],[144,3,146,6],[137,2,138,2],[139,2,140,2],[87,2,88,2],[89,2,90,2],[99,2,100,2],[144,2,146,2],[147,3,149,6],[101,3,101,6],[8,3,11,9],[8,10,11,10],[8,11,11,14],[135,2,136,2],[128,2,129,2],[130,2,134,2],[96,3,96,6],[96,7,96,14],[97,3,97,6],[97,7,97,14],[87,3,88,6],[87,7,88,14],[89,3,90,6],[89,7,90,14],[91,3,94,6],[91,7,94,14],[103,3,103,6],[103,7,103,14],[105,3,105,14],[107,3,108,14],[123,3,124,14],[82,3,83,14],[99,3,100,6],[99,7,100,14],[190,2,191,2],[190,3,191,6],[196,3,197,6],[2,3,6,14],[3,16,5,17],[13,3,14,14],[16,3,22,14],[17,16,20,17],[43,3,47,14],[43,16,45,17],[49,3,61,14],[53,16,55,17],[85,3,85,14],[23,16,24,17],[24,3,24,14],[25,3,25,14],[27,3,38,14],[27,16,29,17],[42,3,42,14],[95,3,95,6],[95,7,95,14],[126,3,126,14],[98,3,98,6],[98,7,98,14],[190,7,191,12],[190,13,191,14],[141,3,143,6],[141,7,143,14],[102,3,102,12],[186,7,187,12],[186,13,187,14],[128,3,129,6],[128,7,129,14],[130,3,134,6],[130,7,134,14],[144,7,146,14],[137,3,138,6],[137,7,138,14],[139,3,140,6],[135,7,136,14],[135,3,136,6],[139,7,140,14],[147,7,149,14],[169,3,170,14],[172,3,172,14],[178,16,180,17],[184,2,185,2],[184,3,185,6],[184,7,185,12],[184,13,185,14],[188,2,189,2],[188,3,189,6],[188,7,189,12],[188,13,189,14],[178,2,180,2],[178,13,180,14],[178,3,180,6],[178,7,180,12],[181,2,183,2],[181,3,183,6],[181,7,183,12],[181,13,183,14],[181,16,183,17],[186,2,187,2],[186,3,187,6],[209,2,210,2],[209,3,210,6],[209,7,210,12],[209,13,210,14],[206,3,207,6],[206,7,207,12],[192,3,195,6],[192,7,195,12],[192,13,195,14],[192,2,195,2],[196,7,197,14],[198,2,199,2],[198,3,199,6],[198,7,199,14],[200,2,201,2],[200,3,201,6],[200,7,201,12],[200,13,201,14],[204,3,205,6],[204,7,205,12],[204,13,205,14],[204,2,205,2],[196,2,197,2],[202,2,203,2],[202,3,203,6],[202,7,203,12],[202,13,203,14],[228,2,230,2],[231,2,233,2],[234,2,236,2],[237,3,242,6],[237,7,242,14],[240,16,242,17],[231,3,233,6],[231,7,233,12],[231,13,233,14],[234,3,236,6],[234,7,236,12],[234,13,236,14],[228,3,230,6],[228,7,230,12],[228,13,230,14],[237,2,242,2],[206,13,207,14],[206,2,207,2],[173,3,175,6],[173,7,175,12],[173,2,175,2],[91,2,94,2],[225,2,227,2],[225,3,227,6],[225,7,227,12],[225,13,227,14],[220,3,221,14],[223,3,223,14],[211,2,212,2],[211,3,212,6],[211,7,212,12],[211,13,212,14],[213,2,214,2],[213,3,214,6],[213,7,214,12],[213,13,214,14],[215,2,216,2],[215,3,216,6],[215,7,216,12],[215,13,216,14]]}
[]
[]
[null,null,null,"TENDER PACK 4\nOPERATING MARGINS\n2026/27 GAS DELIVERY TENDER \n(INTERCONNECTOR FACILITY USER)\nSHEET A - MANDATORY 12 MONTH BID"]
[]
[]
[]
[]
[]
[null,null,null,"This tender pack is designed for:\n• Interconnector Facility Users able to provide demand reduction and/or supply increase services\n",null,null,null,null,null,null,null,"Submission of this sheet is mandatory for Interconnector Facility User Tenderers"]
[]
[]
[]
[]
[null,null,null,"Issued November 2025"]
[]
[]
[null,null,null,"Produced by National Gas Transmission\nNational Gas Transmission plc\nWarwick Technology Park\nGallows Hill\nWarwick\nCV34 6DA"]
[]
[]
[]
[]
[]
[]
[]
[null,null,null,"Website:"]
[null,null,null,"https://www.nationalgas.com/our-businesses/operating-margins"]
[]
[null,null,null,"PLEASE NOTE:\nThis document should be read in conjunction with the template Operating Margins agreements (found on the Operating Margins Homepage) and the document entitled \"Tender Guidance Document 2026/27\".\n\nSpecific guidance on how to complete these tender sheets is provided in Sections 7 & 8 of the Operating Margins Tender Guidance Document with specific cross-references to these tender sheets via superscript numbers adjacent to the relevant fields of information. Please also refer to Section 6 \"Requirements of the Tender Process\" in order to understand what must accompany the tender sheets as part of submission in order that assessment can proceed on any tenders received.\n\nTerms and phrases used in this document have the meanings set out or referred to in the template Operating Margins agreements and/or the Operating Margins Tender Guidance Document."]
[]
[]
[]
[]
[]
[]
[]
[]
[]
[]
[]
[]
[]
[]
[null,null,null,"IMPORTANT INFORMATION - PLEASE READ:"]
[null,null,null,"• All parts of 'Sheet A' must be completed by all Interconnector Facility User tenderers and submitted to be eligible for assessment.\n• Interconnector Facility User tenderers may submit an additional proposal for a 12 month OM service in the form of 'Sheet B', with a different Maximum Delivery Rate. This is optional. \n\n**Volumes in Sheets A and B  will be treated as mutually exclusive - i.e. National Gas will only consider accepting ONE of Sheet A or Sheet B.**"]
[]
[]
[]
[]
[]
[null,null,null,"Completed Tenders should be submitted by 13:00 hours (GMT) on Wednesday 7th January 2026 via Ariba.\n\nThe completed Tender Pack should be uploaded with a filename which includes the company name and site.\nAfter uploading the Tender Pack document, terms and conditions must be accepted before submitting.\nSubmissions can be revised until the deadline."]
[]
[]
[]
[]
[]
[]
[]
[]
[]
[]
[]
[]
[]
[]
[]
[]
[]
[]
[]
[]
[]
[]
[]
[]
[]
[]
[]
[]
[]
[]
[]
[]
[null,null,null,"2026/27 OM GAS DELIVERY TENDER (INTERCONNECTOR FACILITY USER)"]
[]
[]
[null,null,null,"Part 1: Tenderer Details"]
[]
[null,null,1,"Tenderer's Company Name\n(Including registered office address and company number)"]
[]
[null,null,2,"Company Representative, Job Title"]
[]
[null,null,3,"Company Representative Address\n(full address including postcode)"]
[]
[]
[]
[null,null,4,"Telephone Number"]
[]
[null,null,5,"Email Address"]
[null,null,6,"Legal Agent Name"]
[null,null,7,"Legal Agent Address"]
[]
[null,null,8,"Shipper Short Code"]
[null,null,9,"Please confirm that your organisation uses an accredited and industry-recognised digital security management system that manages cyber and information security risks across the full asset lifecycle, including design, architecture, development, testing, commissioning, and post-installation support.\n \nExamples of acceptable standards include (but are not limited to) the following:\n \n•\tISO/IEC 27001 certification\n•\tCyber Essentials / Cyber Essentials Plus (UK government-backed)\n•\tIEC 62443 (for industrial control systems)\n•\tAlignment with the NIST Cybersecurity Framework\n \nNotes:\nIf successful and following contract award notification, OM Service providers will be required to complete a security questionnaire, in order for National Gas to ensure audit compliance.  \n \nIf you fail to provide a response to this question, NGT reserves the right to discount you from the tender process.",null,null,null,null,null,null,null,null,null,"Click checkbox to confirm agreement and adherence ",false]
[null,null,10,"Achilles Registration Number"]
[]
[null,null,null,"Part 2"]
[]
[null,null,null,"[See OM Tenderers Contract Response Form if such amendments are proposed]\nIf no amendments are proposed please go to Part 3"]
[]
[]
[]
[]
[]
[]
[]
[]
[]
[]
[]
[]
[]
[]
[]
[null,null,null,"2026/27 OM GAS DELIVERY TENDER (INTERCONNECTOR FACILITY USER)"]
[]
[]
[null,null,null,"Part 3: Facility Details"]
[]
[null,null,11,"Facility Name\n(including company number)"]
[]
[null,null,12,"Facility Location\n(full address including postcode)\n"]
[]
[]
[]
[]
[null,null,12]
[]
[null,null,13]
[]
[null,null,14]
[]
[null,null,null,"Duration of Service",null,null,null,"12 Months (01/05/2026 - 30/04/2027)"]
[null,null,13]
[]
[null,null,14,"Service Provider contact details for operational notices \nEmployee Position / role, Address, Telephone numbers and email details.",null,null,null,null,null,null,null,null,null,null,null,null,1]
[]
[]
[]
[]
[]
[]
[]
[]
[]
[]
[]
[]
[]
[]
[]
[]
[]
[]
[]
[]
[]
[]
[]
[]
[null,null,null,"2026/27 OM GAS DELIVERY TENDER (INTERCONNECTOR FACILITY USER)"]
[]
[]
[null,null,null,"Part 4: Deliverability & Availability",null,null,null,null,null,null,null,null,null,null,null,null,null,null,null,null,"Please select from drop-down list"]
[null,null,15,"Type of OM Interconnector Service Offered",null,null,null,"Please select from drop-down list",null,null,null,null,null,null,null,null,null,null,null,null,"Demand Reduction"]
[null,null,null,null,null,null,null,null,null,null,null,null,null,null,null,null,null,null,null,null,"Supply Increase"]
[null,null,null,null,null,null,null,null,null,null,null,null,null,null,null,null,null,null,null,null,"Demand Reduction and Supply Increase"]
[]
[]
[null,null,16,"Maximum Supply Increase Delivery Rate (Tendered)\n(requirement must be greater or equal to 500,000 kWh/hour)",null,null,null,null,null,null,null,null,null,"kWh/hour"]
[]
[]
[null,null,17,"Maximum Demand Reduction Delivery Rate (Tendered)\n(requirement must be greater or equal to 500,000 kWh/hour)",null,null,null,null,null,null,null,null,null,"kWh/hour"]
[]
[]
[]
[]
[null,null,18,"Minimum Supply Increase Delivery Rate\n(optional) (if left blank delivery deemed at 0)",null,null,null,null,null,null,null,null,null,"kWh/hour"]
[]
[null,null,19,"Minimum Demand Reduction Delivery Rate\n(optional) (if left blank delivery deemed at 0)",null,null,null,null,null,null,null,null,null,"kWh/hour"]
[]
[null,null,20,"Response Time",null,null,null,null,null,null,null,null,null,"Minutes"]
[]
[null,null,21,"Planned Maintenance Periods",null,null,null,null,null,null,null,null,null,"Dates"]
[]
[]
[]
[null,null,22,"Website for Service Availability / Unavailability"]
[]
[]
[]
[null,null,23,"Maximum Supply Increase Delivery Duration",null,null,null,null,null,null,null,null,null,"hours",null,null,1]
[]
[null,null,24,"Maximum Demand Reduction Delivery Duration",null,null,null,null,null,null,null,null,null,"hours",null,null,1]
[]
[null,null,25,"Minimum Supply Increase Delivery Duration\n(Optional) (if left blank delivery deemed at 0)",null,null,null,null,null,null,null,null,null,"hours"]
[]
[null,null,26,"Minimum Demand Reduction Delivery Duration\n(Optional) (if left blank delivery deemed at 0)",null,null,null,null,null,null,null,null,null,"hours"]
[]
[]
[]
[]
[]
[]
[]
[]
[]
[]
[]
[]
[]
[null,null,null,"2026/27 OM GAS DELIVERY TENDER (INTERCONNECTOR FACILITY USER)"]
[]
[]
[null,null,null,"Part 5: Charges"]
[]
[null,null,27,"Annual Service Fee",null,null,null,null,null,null,null,null,null,"£"]
[]
[]
[null,null,28,"Indexed Delivery Charge\n",null,null,null,"Indexed Delivery Charge 4",null,null,null,null,null,"See Guidance Document"]
[]
[]
[null,null,23,null,null,null,null,null,null,null,null,null,null,"See Guidance Document"]
[]
[]
[null,null,24,null,null,null,null,null,null,null,null,null,null,"See Guidance Document"]
[]
[]
[null,null,29,"Additional Nomination Restrictions"]

{"sheet":"TENDER PACK 4 IFU (Sheet B)","index":1,"n_rows":238,"n_cols":21,"rows_kept":238,"cut":false,"hidden":false,"merged":[[237,2,242,2],[237,3,242,6],[237,7,242,14],[240,16,242,17],[231,2,233,2],[231,3,233,6],[231,7,233,12],[231,13,233,14],[234,2,236,2],[234,3,236,6],[234,7,236,12],[234,13,236,14],[225,2,227,2],[225,3,227,6],[225,7,227,12],[225,13,227,14],[228,2,230,2],[228,3,230,6],[228,7,230,12],[228,13,230,14],[215,2,216,2],[215,3,216,6],[215,7,216,12],[215,13,216,14],[220,3,221,14],[223,3,223,14],[211,2,212,2],[211,3,212,6],[211,7,212,12],[211,13,212,14],[213,2,214,2],[213,3,214,6],[213,7,214,12],[213,13,214,14],[206,2,207,2],[206,3,207,6],[206,7,207,12],[206,13,207,14],[209,2,210,2],[209,3,210,6],[209,7,210,12],[209,13,210,14],[202,2,203,2],[202,3,203,6],[202,7,203,12],[202,13,203,14],[204,2,205,2],[204,3,205,6],[204,7,205,12],[204,13,205,14],[198,2,199,2],[198,3,199,6],[198,7,199,14],[200,2,201,2],[200,3,201,6],[200,7,201,12],[200,13,201,14],[192,2,195,2],[192,3,195,6],[192,7,195,12],[192,13,195,14],[196,2,197,2],[196,3,197,6],[196,7,197,14],[188,2,189,2],[188,3,189,6],[188,7,189,12],[188,13,189,14],[190,2,191,2],[190,3,191,6],[190,7,191,12],[190,13,191,14],[184,2,185,2],[184,3,185,6],[184,7,185,12],[184,13,185,14],[186,2,187,2],[186,3,187,6],[186,7,187,12],[186,13,187,14],[178,16,180,17],[181,2,183,2],[181,3,183,6],[181,7,183,12],[181,13,183,14],[181,16,183,17],[169,3,170,14],[172,3,172,14],[173,2,175,2],[173,3,175,6],[173,7,175,12],[178,2,180,2],[178,3,180,6],[178,7,180,12],[178,13,180,14],[141,3,143,6],[141,7,143,14],[144,2,146,2],[144,3,146,6],[144,7,146,14],[147,2,149,2],[147,3,149,6],[147,7,149,14],[137,2,138,2],[137,3,138,6],[137,7,138,14],[139,2,140,2],[139,3,140,6],[139,7,140,14],[130,2,134,2],[130,3,134,6],[130,7,134,14],[135,2,136,2],[135,3,136,6],[135,7,136,14],[107,3,108,14],[123,3,124,14],[126,3,126,14],[128,2,129,2],[128,3,129,6],[128,7,129,14],[101,3,101,6],[101,7,101,14],[102,3,102,12],[103,3,103,6],[103,7,103,14],[105,3,105,14],[97,3,97,6],[97,7,97,14],[98,3,98,6],[98,7,98,14],[87,2,88,2],[87,3,88,6],[87,7,88,14],[89,2,90,2],[89,3,90,6],[89,7,90,14],[42,3,42,14],[43,3,47,14],[99,2,100,2],[99,3,100,6],[99,7,100,14],[91,2,94,2],[91,3,94,6],[91,7,94,14],[95,3,95,6],[95,7,95,14],[96,3,96,6],[96,7,96,14],[82,3,83,14],[16,3,22,14],[17,16,20,17],[23,16,24,17],[24,3,24,14],[25,3,25,14],[27,3,38,14],[27,16,29,17],[85,3,85,14],[2,3,6,14],[3,16,5,17],[8,3,11,9],[8,10,11,10],[8,11,11,14],[13,3,14,14],[43,16,45,17],[49,3,61,14],[53,16,55,17]]}
[]
[]
[null,null,null,"TENDER PACK 4\nOPERATING MARGINS\n2026/27 GAS DELIVERY TENDER \n(INTERCONNECTOR FACILITY USER)\nSHEET B - OPTIONAL 12 MONTH BID"]
[]
[]
[]
[]
[]
[null,null,null,"This tender pack is designed for:\n• Interconnector Facility Users able to provide demand reduction and/or supply increase services\n",null,null,null,null,null,null,null,"Submission of this sheet is optional for Interconnector Facility User Tenderers"]
[]
[]
[]
[]
[null,null,null,"Issued November 2025"]
[]
[]
[null,null,null,"Produced by National Gas Transmission\nNational Gas Transmission plc\nWarwick Technology Park\nGallows Hill\nWarwick\nCV34 6DA"]
[]
[]
[]
[]
[]
[]
[]
[null,null,null,"Website:"]
[null,null,null,"https://www.nationalgas.com/our-businesses/operating-margins"]
[]
[null,null,null,"PLEASE NOTE:\nThis document should be read in conjunction with the template Operating Margins agreements (found on the Operating Margins Homepage) and the document entitled \"Tender Guidance Document 2026/27\".\n\nSpecific guidance on how to complete these tender sheets is provided in Sections 7 & 8 of the Operating Margins Tender Guidance Document with specific cross-references to these tender sheets via superscript numbers adjacent to the relevant fields of information. Please also refer to Section 6 \"Requirements of the Tender Process\" in order to understand what must accompany the tender sheets as part of submission in order that assessment can proceed on any tenders received.\n\nTerms and phrases used in this document have the meanings set out or referred to in the template Operating Margins agreements and/or the Operating Margins Tender Guidance Document."]
[]
[]
[]
[]
[]
[]
[]
[]
[]
[]
[]
[]
[]
[]
[null,null,null,"IMPORTANT INFORMATION - PLEASE READ:"]
[null,null,null,"• All parts of 'Sheet A' must be completed by all Interconnector Facility User tenderers and submitted to be eligible for assessment.\n• Interconnector Facility User tenderers may submit an additional proposal for a 12 month OM service in the form of 'Sheet B', with a different Maximum Delivery Rate. This is optional. \n\n**Volumes in Sheets A and B  will be treated as mutually exclusive - i.e. National Gas will only consider accepting ONE of Sheet A or Sheet B.**"]
[]
[]
[]
[]
[]
[null,null,null,"Completed Tenders should be submitted by 13:00 hours (GMT) on Wednesday 7th January 2026 via Ariba.\n\nThe completed Tender Pack should be uploaded with a filename which includes the company name and site.\nAfter uploading the Tender Pack document, terms and conditions must be accepted before submitting.\nSubmissions can be revised until the deadline."]
[]
[]
[]
[]
[]
[]
[]
[]
[]
[]
[]
[]
[]
[]
[]
[]
[]
[]
[]
[]
[]
[]
[]
[]
[]
[]
[]
[]
[]
[]
[]
[]
[null,null,null,"2026/27 OM GAS DELIVERY TENDER (INTERCONNECTOR FACILITY USER)"]
[]
[]
[null,null,null,"Part 1: Tenderer Details"]
[]
[null,null,1,"Tenderer's Company Name\n(Including registered office address and company number)"]
[]
[null,null,2,"Company Representative, Job Title"]
[]
[null,null,3,"Company Representative Address\n(full address including postcode)"]
[]
[]
[]
[null,null,4,"Telephone Number"]
[]
[null,null,5,"Email Address"]
[null,null,6,"Legal Agent Name"]
[null,null,7,"Legal Agent Address"]
[]
[null,null,8,"Shipper Short Code"]
[null,null,9,"Please confirm that your organisation uses an accredited and industry-recognised digital security management system that manages cyber and information security risks across the full asset lifecycle, including design, architecture, development, testing, commissioning, and post-installation support.\n \nExamples of acceptable standards include (but are not limited to) the following:\n \n•\tISO/IEC 27001 certification\n•\tCyber Essentials / Cyber Essentials Plus (UK government-backed)\n•\tIEC 62443 (for industrial control systems)\n•\tAlignment with the NIST Cybersecurity Framework\n \nNotes:\nIf successful and following contract award notification, OM Service providers will be required to complete a security questionnaire, in order for National Gas to ensure audit compliance.  \n \nIf you fail to provide a response to this question, NGT reserves the right to discount you from the tender process.",null,null,null,null,null,null,null,null,null,"Click checkbox to confirm agreement and adherence ",false]
[null,null,10,"Achilles Registration Number"]
[]
[null,null,null,"Part 2"]
[]
[null,null,null,"[See OM Tenderers Contract Response Form if such amendments are proposed]\nIf no amendments are proposed please go to Part 3"]
[]
[]
[]
[]
[]
[]
[]
[]
[]
[]
[]
[]
[]
[]
[]
[null,null,null,"2026/27 OM GAS DELIVERY TENDER (INTERCONNECTOR FACILITY USER)"]
[]
[]
[null,null,null,"Part 3: Facility Details"]
[]
[null,null,11,"Facility Name\n(including company number)"]
[]
[null,null,12,"Facility Location\n(full address including postcode)\n"]
[]
[]
[]
[]
[null,null,12]
[]
[null,null,13]
[]
[null,null,14]
[]
[null,null,null,"Duration of Service",null,null,null,"12 Months (01/05/2026 - 30/04/2027)"]
[null,null,13]
[]
[null,null,14,"Service Provider contact details for operational notices \nEmployee Position / role, Address, Telephone numbers and email details.",null,null,null,null,null,null,null,null,null,null,null,null,1]
[]
[]
[]
[]
[]
[]
[]
[]
[]
[]
[]
[]
[]
[]
[]
[]
[]
[]
[]
[]
[]
[]
[]
[]
[null,null,null,"2026/27 OM GAS DELIVERY TENDER (INTERCONNECTOR FACILITY USER)"]
[]
[]
[null,null,null,"Part 4: Deliverability & Availability",null,null,null,null,null,null,null,null,null,null,null,null,null,null,null,null,"Please select from drop-down list"]
[null,null,15,"Type of OM Interconnector Service Offered",null,null,null,"Please select from drop-down list",null,null,null,null,null,null,null,null,null,null,null,null,"Demand Reduction"]
[null,null,null,null,null,null,null,null,null,null,null,null,null,null,null,null,null,null,null,null,"Supply Increase"]
[null,null,null,null,null,null,null,null,null,null,null,null,null,null,null,null,null,null,null,null,"Demand Reduction and Supply Increase"]
[]
[]
[null,null,16,"Maximum Supply Increase Delivery Rate (Tendered)\n(requirement must be greater or equal to 500,000 kWh/hour)",null,null,null,null,null,null,null,null,null,"kWh/hour"]
[]
[]
[null,null,17,"Maximum Demand Reduction Delivery Rate (Tendered)\n(requirement must be greater or equal to 500,000 kWh/hour)",null,null,null,null,null,null,null,null,null,"kWh/hour"]
[]
[]
[]
[]
[null,null,18,"Minimum Supply Increase Delivery Rate\n(optional) (if left blank delivery deemed at 0)",null,null,null,null,null,null,null,null,null,"kWh/hour"]
[]
[null,null,19,"Minimum Demand Reduction Delivery Rate\n(optional) (if left blank delivery deemed at 0)",null,null,null,null,null,null,null,null,null,"kWh/hour"]
[]
[null,null,20,"Response Time",null,null,null,null,null,null,null,null,null,"Minutes"]
[]
[null,null,21,"Planned Maintenance Periods",null,null,null,null,null,null,null,null,null,"Dates"]
[]
[]
[]
[null,null,22,"Website for Service Availability / Unavailability"]
[]
[]
[]
[null,null,23,"Maximum Supply Increase Delivery Duration",null,null,null,null,null,null,null,null,null,"hours",null,null,1]
[]
[null,null,24,"Maximum Demand Reduction Delivery Duration",null,null,null,null,null,null,null,null,null,"hours",null,null,1]
[]
[null,null,25,"Minimum Supply Increase Delivery Duration\n(Optional) (if left blank delivery deemed at 0)",null,null,null,null,null,null,null,null,null,"hours"]
[]
[null,null,26,"Minimum Demand Reduction Delivery Duration\n(Optional) (if left blank delivery deemed at 0)",null,null,null,null,null,null,null,null,null,"hours"]
[]
[]
[]
[]
[]
[]
[]
[]
[]
[]
[]
[]
[]
[null,null,null,"2026/27 OM GAS DELIVERY TENDER (INTERCONNECTOR FACILITY USER)"]
[]
[]
[null,null,null,"Part 5: Charges"]
[]
[null,null,27,"Annual Service Fee",null,null,null,null,null,null,null,null,null,"£"]
[]
[]
[null,null,28,"Indexed Delivery Charge\n",null,null,null,"Indexed Delivery Charge 4",null,null,null,null,null,"See Guidance Document"]
[]
[]
[null,null,23,null,null,null,null,null,null,null,null,null,null,"See Guidance Document"]
[]
[]
[null,null,24,null,null,null,null,null,null,null,null,null,null,"See Guidance Document"]
[]
[]
[null,null,29,"Additional Nomination Restrictions"]

{"sheet":"DC3A","index":2,"n_rows":4,"n_cols":41,"rows_kept":4,"cut":false,"hidden":true,"merged":[[0,2,1,9]]}
[null,null,"Data Collection Tab for Contracts Team"]
[]
["Tender Pack","Tender Ref","Tranche Ref","Main Ref",{"$f":"'TENDER PACK 4 IFU (Sheet A)'!$D$88","v":"Tenderer's Company Name\n(Including registered office address and company number)"},{"$f":"'TENDER PACK 4 IFU (Sheet A)'!$D$90","v":"Company Representative, Job Title"},{"$f":"'TENDER PACK 4 IFU (Sheet A)'!$D$92","v":"Company Representative Address\n(full address including postcode)"},{"$f":"'TENDER PACK 4 IFU (Sheet A)'!$D$96","v":"Telephone Number"},{"$f":"'TENDER PACK 4 IFU (Sheet A)'!$D$97","v":0},{"$f":"'TENDER PACK 4 IFU (Sheet A)'!$D$98","v":"Email Address"},{"$f":"'TENDER PACK 4 IFU (Sheet A)'!$D$99","v":"Legal Agent Name"},{"$f":"'TENDER PACK 4 IFU (Sheet A)'!$D$100","v":"Legal Agent Address"},{"$f":"'TENDER PACK 4 IFU (Sheet A)'!$D$102","v":"Shipper Short Code"},{"$f":"'TENDER PACK 4 IFU (Sheet A)'!$D$104","v":"Achilles Registration Number"},"Winter Only?",{"$f":"'TENDER PACK 4 IFU (Sheet A)'!$D$129","v":"Facility Name\n(including company number)"},{"$f":"'TENDER PACK 4 IFU (Sheet A)'!$D$131","v":"Facility Location\n(full address including postcode)\n"},{"$f":"'TENDER PACK 4 IFU (Sheet A)'!$D$136","v":0},{"$f":"'TENDER PACK 4 IFU (Sheet A)'!$D$138","v":0},{"$f":"'TENDER PACK 4 IFU (Sheet A)'!$D$140","v":0},{"$f":"'TENDER PACK 4 IFU (Sheet A)'!$D$145","v":"Service Provider contact details for operational notices \nEmployee Position / role, Address, Telephone numbers and email details."},{"$f":"'TENDER PACK 4 IFU (Sheet A)'!$D$148","v":0},{"$f":"'TENDER PACK 4 IFU (Sheet A)'!$D$179","v":"Maximum Supply Increase Delivery Rate (Tendered)\n(requirement must be greater or equal to 500,000 kWh/hour)"},{"$f":"'TENDER PACK 4 IFU (Sheet A)'!$D$185","v":0},{"$f":"'TENDER PACK 4 IFU (Sheet A)'!$D$189","v":"Minimum Demand Reduction Delivery Rate\n(optional) (if left blank delivery deemed at 0)"},{"$f":"'TENDER PACK 4 IFU (Sheet A)'!$D$191","v":"Response Time"},{"$f":"'TENDER PACK 4 IFU (Sheet A)'!$D$193","v":"Planned Maintenance Periods"},{"$f":"'TENDER PACK 4 IFU (Sheet A)'!$D$197","v":"Website for Service Availability / Unavailability"},{"$f":"'TENDER PACK 4 IFU (Sheet A)'!$D$199","v":0},{"$f":"'TENDER PACK 4 IFU (Sheet A)'!$D$201","v":"Maximum Supply Increase Delivery Duration"},{"$f":"'TENDER PACK 4 IFU (Sheet A)'!$D$205","v":"Minimum Supply Increase Delivery Duration\n(Optional) (if left blank delivery deemed at 0)"},{"$f":"'TENDER PACK 4 IFU (Sheet A)'!$D$210","v":0},{"$f":"'TENDER PACK 4 IFU (Sheet A)'!$D$212","v":0},{"$f":"'TENDER PACK 4 IFU (Sheet A)'!$D$214","v":0},{"$f":"'TENDER PACK 4 IFU (Sheet A)'!$D$216","v":0},{"$f":"'TENDER PACK 4 IFU (Sheet A)'!$D$226","v":"Annual Service Fee"},{"$f":"'TENDER PACK 4 IFU (Sheet A)'!$D$229","v":"Indexed Delivery Charge\n"},{"$f":"'TENDER PACK 4 IFU (Sheet A)'!$D$232","v":0},{"$f":"'TENDER PACK 4 IFU (Sheet A)'!$D$235","v":0},{"$f":"'TENDER PACK 4 IFU (Sheet A)'!$D$238","v":"Additional Nomination Restrictions"},{"$f":"'TENDER PACK 4 IFU (Sheet A)'!#REF!","v":{"$error":"#REF!"}}]
[null,null,null,{"$f":"A4&\".\"&B4&\".\"&C4","v":".."},{"$f":"'TENDER PACK 4 IFU (Sheet A)'!$H$88","v":0},{"$f":"'TENDER PACK 4 IFU (Sheet A)'!$H$90","v":0},{"$f":"'TENDER PACK 4 IFU (Sheet A)'!$H$92","v":0},{"$f":"'TENDER PACK 4 IFU (Sheet A)'!$H$96","v":0},{"$f":"'TENDER PACK 4 IFU (Sheet A)'!$H$97","v":0},{"$f":"'TENDER PACK 4 IFU (Sheet A)'!$H$98","v":0},{"$f":"'TENDER PACK 4 IFU (Sheet A)'!$H$99","v":0},{"$f":"'TENDER PACK 4 IFU (Sheet A)'!$H$100","v":0},{"$f":"'TENDER PACK 4 IFU (Sheet A)'!$H$102","v":0},{"$f":"'TENDER PACK 4 IFU (Sheet A)'!$H$104","v":0},"No",{"$f":"'TENDER PACK 4 IFU (Sheet A)'!$H$129","v":0},{"$f":"'TENDER PACK 4 IFU (Sheet A)'!$H$131","v":0},{"$f":"'TENDER PACK 4 IFU (Sheet A)'!$H$136","v":0},{"$f":"'TENDER PACK 4 IFU (Sheet A)'!$H$138","v":0},{"$f":"'TENDER PACK 4 IFU (Sheet A)'!$H$140","v":0},{"$f":"'TENDER PACK 4 IFU (Sheet A)'!$H$145","v":0},{"$f":"'TENDER PACK 4 IFU (Sheet A)'!$H$148","v":0},{"$f":"'TENDER PACK 4 IFU (Sheet A)'!$H$179","v":0},{"$f":"'TENDER PACK 4 IFU (Sheet A)'!$H$185","v":0},{"$f":"'TENDER PACK 4 IFU (Sheet A)'!$H$189","v":0},{"$f":"'TENDER PACK 4 IFU (Sheet A)'!$H$191","v":0},{"$f":"'TENDER PACK 4 IFU (Sheet A)'!$H$193","v":"00:00:00"},{"$f":"'TENDER PACK 4 IFU (Sheet A)'!$H$197","v":0},{"$f":"'TENDER PACK 4 IFU (Sheet A)'!$H$199","v":0},{"$f":"IF('TENDER PACK 4 IFU (Sheet A)'!Q201=1,\"12\",IF('TENDER PACK 4 IFU (Sheet A)'!Q201=2,\"24\",\"UNCHECKED\"))","v":"12"},{"$f":"'TENDER PACK 4 IFU (Sheet A)'!$H$205","v":0},{"$f":"'TENDER PACK 4 IFU (Sheet A)'!$H$210","v":0},{"$f":"'TENDER PACK 4 IFU (Sheet A)'!$H$212","v":0},{"$f":"'TENDER PACK 4 IFU (Sheet A)'!$H$214","v":0},{"$f":"'TENDER PACK 4 IFU (Sheet A)'!$H$216","v":0},{"$f":"'TENDER PACK 4 IFU (Sheet A)'!$H$226","v":0},{"$f":"'TENDER PACK 4 IFU (Sheet A)'!$H$229","v":"Indexed Delivery Charge 4"},{"$f":"'TENDER PACK 4 IFU (Sheet A)'!$H$232","v":0},{"$f":"'TENDER PACK 4 IFU (Sheet A)'!$H$235","v":0},{"$f":"'TENDER PACK 4 IFU (Sheet A)'!$H$238","v":0},{"$f":"IF('TENDER PACK 4 IFU (Sheet A)'!#REF!=\"\",\"N\",\"Y\")","v":{"$error":"#REF!"}}]

{"sheet":"DC3B","index":3,"n_rows":4,"n_cols":41,"rows_kept":4,"cut":false,"hidden":true,"merged":[[0,2,1,9]]}
[null,null,"Data Collection Tab for Contracts Team"]
[]
["Tender Pack","Tender Ref","Tranche Ref","Main Ref",{"$f":"#REF!","v":{"$error":"#REF!"}},{"$f":"#REF!","v":{"$error":"#REF!"}},{"$f":"#REF!","v":{"$error":"#REF!"}},{"$f":"#REF!","v":{"$error":"#REF!"}},{"$f":"#REF!","v":{"$error":"#REF!"}},{"$f":"#REF!","v":{"$error":"#REF!"}},{"$f":"#REF!","v":{"$error":"#REF!"}},{"$f":"#REF!","v":{"$error":"#REF!"}},{"$f":"#REF!","v":{"$error":"#REF!"}},{"$f":"#REF!","v":{"$error":"#REF!"}},"Winter Only?",{"$f":"#REF!","v":{"$error":"#REF!"}},{"$f":"#REF!","v":{"$error":"#REF!"}},{"$f":"#REF!","v":{"$error":"#REF!"}},{"$f":"#REF!","v":{"$error":"#REF!"}},{"$f":"#REF!","v":{"$error":"#REF!"}},{"$f":"#REF!","v":{"$error":"#REF!"}},{"$f":"#REF!","v":{"$error":"#REF!"}},{"$f":"#REF!","v":{"$error":"#REF!"}},{"$f":"#REF!","v":{"$error":"#REF!"}},{"$f":"#REF!","v":{"$error":"#REF!"}},{"$f":"#REF!","v":{"$error":"#REF!"}},{"$f":"#REF!","v":{"$error":"#REF!"}},{"$f":"#REF!","v":{"$error":"#REF!"}},{"$f":"#REF!","v":{"$error":"#REF!"}},{"$f":"#REF!","v":{"$error":"#REF!"}},{"$f":"#REF!","v":{"$error":"#REF!"}},{"$f":"#REF!","v":{"$error":"#REF!"}},{"$f":"#REF!","v":{"$error":"#REF!"}},{"$f":"#REF!","v":{"$error":"#REF!"}},{"$f":"#REF!","v":{"$error":"#REF!"}},{"$f":"#REF!","v":{"$error":"#REF!"}},{"$f":"#REF!","v":{"$error":"#REF!"}},{"$f":"#REF!","v":{"$error":"#REF!"}},{"$f":"#REF!","v":{"$error":"#REF!"}},{"$f":"#REF!","v":{"$error":"#REF!"}},{"$f":"#REF!","v":{"$error":"#REF!"}}]
[null,null,null,{"$f":"A4&\".\"&B4&\".\"&C4","v":".."},{"$f":"#REF!","v":{"$error":"#REF!"}},{"$f":"#REF!","v":{"$error":"#REF!"}},{"$f":"#REF!","v":{"$error":"#REF!"}},{"$f":"#REF!","v":{"$error":"#REF!"}},{"$f":"#REF!","v":{"$error":"#REF!"}},{"$f":"#REF!","v":{"$error":"#REF!"}},{"$f":"#REF!","v":{"$error":"#REF!"}},{"$f":"#REF!","v":{"$error":"#REF!"}},{"$f":"#REF!","v":{"$error":"#REF!"}},{"$f":"#REF!","v":{"$error":"#REF!"}},"No",{"$f":"#REF!","v":{"$error":"#REF!"}},{"$f":"#REF!","v":{"$error":"#REF!"}},{"$f":"#REF!","v":{"$error":"#REF!"}},{"$f":"#REF!","v":{"$error":"#REF!"}},{"$f":"#REF!","v":{"$error":"#REF!"}},{"$f":"#REF!","v":{"$error":"#REF!"}},{"$f":"#REF!","v":{"$error":"#REF!"}},{"$f":"#REF!","v":{"$error":"#REF!"}},{"$f":"#REF!","v":{"$error":"#REF!"}},{"$f":"#REF!","v":{"$error":"#REF!"}},{"$f":"#REF!","v":{"$error":"#REF!"}},{"$f":"#REF!","v":{"$error":"#REF!"}},{"$f":"#REF!","v":{"$error":"#REF!"}},{"$f":"#REF!","v":{"$error":"#REF!"}},{"$f":"IF(#REF!=1,\"12\",IF(#REF!=2,\"24\",\"UNCHECKED\"))","v":{"$error":"#REF!"}},{"$f":"#REF!","v":{"$error":"#REF!"}},{"$f":"#REF!","v":{"$error":"#REF!"}},{"$f":"#REF!","v":{"$error":"#REF!"}},{"$f":"#REF!","v":{"$error":"#REF!"}},{"$f":"#REF!","v":{"$error":"#REF!"}},{"$f":"#REF!","v":{"$error":"#REF!"}},{"$f":"#REF!","v":{"$error":"#REF!"}},{"$f":"#REF!","v":{"$error":"#REF!"}},{"$f":"#REF!","v":{"$error":"#REF!"}},{"$f":"#REF!","v":{"$error":"#REF!"}},{"$f":"IF(#REF!=\"\",\"N\",\"Y\")","v":{"$error":"#REF!"}}]

{"sheet":"DC3C","index":4,"n_rows":4,"n_cols":41,"rows_kept":4,"cut":false,"hidden":true,"merged":[[0,2,1,9]]}
[null,null,"Data Collection Tab for Contracts Team"]
[]
["Tender Pack","Tender Ref","Tranche Ref","Main Ref",{"$f":"#REF!","v":{"$error":"#REF!"}},{"$f":"#REF!","v":{"$error":"#REF!"}},{"$f":"#REF!","v":{"$error":"#REF!"}},{"$f":"#REF!","v":{"$error":"#REF!"}},{"$f":"#REF!","v":{"$error":"#REF!"}},{"$f":"#REF!","v":{"$error":"#REF!"}},{"$f":"#REF!","v":{"$error":"#REF!"}},{"$f":"#REF!","v":{"$error":"#REF!"}},{"$f":"#REF!","v":{"$error":"#REF!"}},{"$f":"#REF!","v":{"$error":"#REF!"}},"Winter Only?",{"$f":"#REF!","v":{"$error":"#REF!"}},{"$f":"#REF!","v":{"$error":"#REF!"}},{"$f":"#REF!","v":{"$error":"#REF!"}},{"$f":"#REF!","v":{"$error":"#REF!"}},{"$f":"#REF!","v":{"$error":"#REF!"}},{"$f":"#REF!","v":{"$error":"#REF!"}},{"$f":"#REF!","v":{"$error":"#REF!"}},{"$f":"#REF!","v":{"$error":"#REF!"}},{"$f":"#REF!","v":{"$error":"#REF!"}},{"$f":"#REF!","v":{"$error":"#REF!"}},{"$f":"#REF!","v":{"$error":"#REF!"}},{"$f":"#REF!","v":{"$error":"#REF!"}},{"$f":"#REF!","v":{"$error":"#REF!"}},{"$f":"#REF!","v":{"$error":"#REF!"}},{"$f":"#REF!","v":{"$error":"#REF!"}},{"$f":"#REF!","v":{"$error":"#REF!"}},{"$f":"#REF!","v":{"$error":"#REF!"}},{"$f":"#REF!","v":{"$error":"#REF!"}},{"$f":"#REF!","v":{"$error":"#REF!"}},{"$f":"#REF!","v":{"$error":"#REF!"}},{"$f":"#REF!","v":{"$error":"#REF!"}},{"$f":"#REF!","v":{"$error":"#REF!"}},{"$f":"#REF!","v":{"$error":"#REF!"}},{"$f":"#REF!","v":{"$error":"#REF!"}},{"$f":"#REF!","v":{"$error":"#REF!"}},{"$f":"#REF!","v":{"$error":"#REF!"}}]
[null,null,null,{"$f":"A4&\".\"&B4&\".\"&C4","v":".."},{"$f":"#REF!","v":{"$error":"#REF!"}},{"$f":"#REF!","v":{"$error":"#REF!"}},{"$f":"#REF!","v":{"$error":"#REF!"}},{"$f":"#REF!","v":{"$error":"#REF!"}},{"$f":"#REF!","v":{"$error":"#REF!"}},{"$f":"#REF!","v":{"$error":"#REF!"}},{"$f":"#REF!","v":{"$error":"#REF!"}},{"$f":"#REF!","v":{"$error":"#REF!"}},{"$f":"#REF!","v":{"$error":"#REF!"}},{"$f":"#REF!","v":{"$error":"#REF!"}},"Yes",{"$f":"#REF!","v":{"$error":"#REF!"}},{"$f":"#REF!","v":{"$error":"#REF!"}},{"$f":"#REF!","v":{"$error":"#REF!"}},{"$f":"#REF!","v":{"$error":"#REF!"}},{"$f":"#REF!","v":{"$error":"#REF!"}},{"$f":"#REF!","v":{"$error":"#REF!"}},{"$f":"#REF!","v":{"$error":"#REF!"}},{"$f":"#REF!","v":{"$error":"#REF!"}},{"$f":"#REF!","v":{"$error":"#REF!"}},{"$f":"#REF!","v":{"$error":"#REF!"}},{"$f":"#REF!","v":{"$error":"#REF!"}},{"$f":"#REF!","v":{"$error":"#REF!"}},{"$f":"#REF!","v":{"$error":"#REF!"}},{"$f":"#REF!","v":{"$error":"#REF!"}},{"$f":"IF(#REF!=1,\"12\",IF(#REF!=2,\"24\",\"UNCHECKED\"))","v":{"$error":"#REF!"}},{"$f":"#REF!","v":{"$error":"#REF!"}},{"$f":"#REF!","v":{"$error":"#REF!"}},{"$f":"#REF!","v":{"$error":"#REF!"}},{"$f":"#REF!","v":{"$error":"#REF!"}},{"$f":"#REF!","v":{"$error":"#REF!"}},{"$f":"#REF!","v":{"$error":"#REF!"}},{"$f":"#REF!","v":{"$error":"#REF!"}},{"$f":"#REF!","v":{"$error":"#REF!"}},{"$f":"#REF!","v":{"$error":"#REF!"}},{"$f":"#REF!","v":{"$error":"#REF!"}},{"$f":"IF(#REF!=\"\",\"N\",\"Y\")","v":{"$error":"#REF!"}}]